[Event "Hunan Belt and Road Open 2019"]
[Site "Hunan"]
[Date "2019.08.02"]
[Round "5.30"]
[White "Wang, Chen"]
[Black "Xie, Jianjun"]
[Result "1-0"]
[ECO "A41"]
[WhiteElo "2476"]
[BlackElo "2417"]
[Annotator "ChessBase"]
[PlyCount "87"]
[EventDate "2019.07.29"]
[EventType "swiss"]
[EventCountry "CHN"]
[SourceTitle "playchess.com"]
[Source "ChessBase"]
[SourceQuality "1"]
[TimeControl "5400+30"]

1. e4 {[%emt 0:00:00]} d6 {[%emt 0:00:00]} 2. d4 {[%emt 0:00:25]} Nf6 {[%emt 0:00:00]} 3. Nc3 {[%emt 0:00:47]} c6 {[%emt 0:00:00]} 4. Nf3 {[%emt 0:02:16]} Bg4 {[%emt 0:00:22]} 5. h3 {[%emt 0:02:04]} Bh5 {[%emt 0:00:52]} 6. g4 {[%emt 0:00:37]} Bg6 {[%emt 0:00:08]} 7. Qe2 {[%emt 0:00:06]} e6 {[%emt 0:13:21]} 8. h4 {[%emt 0:02:14]} h5 {[%emt 0:00:06]} 9. g5 {[%emt 0:00:04]} Nfd7 {[%emt 0:00:03]} 10. Bh3 {[%emt 0:00:16]} Be7 {[%emt 0:00:14]} 11. O-O {[%emt 0:00:49]} d5 {[%emt 0:00:53]} 12. Re1 {[%emt 0:33:56]} Nf8 {[%emt 0:24:35]} 13. exd5 {[%emt 0:24:09]} cxd5 {[%emt 0:00:17]} 14. Qb5+ {[%emt 0:01:42]} Qd7 {[%emt 0:17:12]} 15. Nxd5 {[%emt 0:03:35]} Qxb5 {[%emt 0:03:24]} 16. Nc7+ {[%emt 0:00:17]} Kd8 {[%emt 0:00:03]} 17. Nxb5 {[%emt 0:00:04]} a6 {[%emt 0:00:04]} 18. Nc3 {[%emt 0:00:17]} Bxc2 {[%emt 0:02:44]} 19. d5 {[%emt 0:01:19]} Nbd7 {[%emt 0:00:31]} 20. dxe6 {[%emt 0:04:30]} Nxe6 {[%emt 0:00:15]} 21. Bxe6 {[%emt 0:00:05]} fxe6 {[%emt 0:00:04]} 22. Nd4 {[%emt 0:00:04]} Bf5 {[%emt 0:00:15]} 23. Nxe6+ {[%emt 0:00:19]} Bxe6 {[%emt 0:00:09]} 24. Rxe6 {[%emt 0:00:01]} Bc5 {[%emt 0:03:53]} 25. Bf4 {[%emt 0:01:02]} Re8 {[%emt 0:00:50]} 26. Rxe8+ {[%emt 0:04:28]} Kxe8 {[%emt 0:00:01]} 27. Ne4 {[%emt 0:00:26]} Rc8 {[%emt 0:05:02]} 28. Rc1 {[%emt 0:01:02]} Rc6 {[%emt 0:00:08]} 29. Kg2 {[%emt 0:00:17]} Ke7 {[%emt 0:03:50]} 30. Bd2 {[%emt 0:00:36]} Bd4 {[%emt 0:02:39]} 31. Rxc6 {[%emt 0:02:25]} bxc6 {[%emt 0:00:01]} 32. b3 {[%emt 0:00:10]} Ke6 {[%emt 0:03:38]} 33. f4 {[%emt 0:00:39]} g6 {[%emt 0:02:20]} 34. Kf3 {[%emt 0:00:05]} Nc5 {[%emt 0:02:09]} 35. Ng3 {[%emt 0:00:51]} Bb2 {[%emt 0:00:43]} 36. f5+ {[%emt 0:02:31]} gxf5 {[%emt 0:00:48]} 37. Nxh5 {[%emt 0:00:06]} Ne4 {[%emt 0:00:29]} 38. Nf4+ {[%emt 0:00:51]} Kf7 {[%emt 0:00:07]} 39. Be1 {[%emt 0:00:12]} Bc3 {[%emt 0:01:17]} 40. Bxc3 {[%emt 0:03:35]} Nxc3 {[%emt 0:00:02]} 41. h5 {[%emt 0:00:31]} Nxa2 {[%emt 0:00:33]} 42. Nd3 {[%emt 0:08:03]} Nc3 {[%emt 0:00:22]} 43. Ne5+ {[%emt 0:00:18]} Kg7 {[%emt 0:00:22]} 44. Nxc6 {[%emt 0:00:20]} 1-0

[Event "Hunan Belt and Road Open 2019"]
[Site "Hunan"]
[Date "2019.08.02"]
[Round "5.34"]
[White "Gan-Erdene, Sugar"]
[Black "Fang, Yuxiang"]
[Result "1/2-1/2"]
[ECO "C54"]
[WhiteElo "2408"]
[BlackElo "2476"]
[Annotator "ChessBase"]
[PlyCount "104"]
[EventDate "2019.07.29"]
[EventType "swiss"]
[EventCountry "CHN"]
[SourceTitle "playchess.com"]
[Source "ChessBase"]
[SourceQuality "1"]
[TimeControl "5400+30"]

1. e4 {[%emt 0:00:00]} e5 {[%emt 0:02:31]} 2. Nf3 {[%emt 0:00:00]} Nc6 {[%emt 0:00:08]} 3. Bc4 {[%emt 0:00:11]} Nf6 {[%emt 0:01:11]} 4. d3 {[%emt 0:01:19]} Bc5 {[%emt 0:01:32]} 5. c3 {[%emt 0:00:15]} d6 {[%emt 0:00:22]} 6. a4 {[%emt 0:00:26]} a5 {[%emt 0:00:49]} 7. O-O {[%emt 0:00:30]} h6 {[%emt 0:01:33]} 8. Nbd2 {[%emt 0:08:18]} O-O {[%emt 0:03:22]} 9. h3 {[%emt 0:00:29]} Be6 {[%emt 0:05:19]} 10. Re1 {[%emt 0:04:20]} Qe7 {[%emt 0:04:09]} 11. b3 {[%emt 0:08:04]} Ba7 {[%emt 0:10:09]} 12. Nf1 {[%emt 0:05:09]} Bxc4 {[%emt 0:02:52]} 13. bxc4 {[%emt 0:00:22]} Qe6 {[%emt 0:00:34]} 14. Nh4 {[%emt 0:02:00]} Ne7 {[%emt 0:01:44]} 15. Qf3 {[%emt 0:01:26]} Kh7 {[%emt 0:05:48]} 16. Rb1 {[%emt 0:01:23]} Rab8 {[%emt 0:01:35]} 17. Ng3 {[%emt 0:04:21]} Nfg8 {[%emt 0:02:15]} 18. Rb5 {[%emt 0:24:05]} Bc5 {[%emt 0:13:44]} 19. Rxa5 {[%emt 0:08:49]} Ra8 {[%emt 0:02:38]} 20. Rb5 {[%emt 0:06:24]} Rxa4 {[%emt 0:00:04]} 21. Rxb7 {[%emt 0:04:35]} Bb6 {[%emt 0:00:04]} 22. Nhf5 {[%emt 0:02:53]} g6 {[%emt 0:00:47]} 23. Nxe7 {[%emt 0:04:03]} Nxe7 {[%emt 0:00:01]} 24. Rxb6 cxb6 25. Qe3 {[%emt 0:05:25]} Ng8 {[%emt 0:10:17]} 26. Qxb6 {[%emt 0:00:13]} Ra1 {[%emt 0:00:03]} 27. Bd2 {[%emt 0:00:58]} Rxe1+ {[%emt 0:02:50]} 28. Bxe1 {[%emt 0:00:04]} Ra8 {[%emt 0:00:06]} 29. Bd2 {[%emt 0:01:15]} Qd7 {[%emt 0:00:26]} 30. Be3 {[%emt 0:01:14]} h5 {[%emt 0:01:03]} 31. Kh2 {[%emt 0:00:30]} Ra1 {[%emt 0:00:40]} 32. Ne2 {[%emt 0:05:41]} h4 {[%emt 0:02:37]} 33. Ng1 {[%emt 0:00:30]} f6 {[%emt 0:01:48]} 34. Nf3 {[%emt 0:00:27]} g5 35. Qb8 {[%emt 0:01:01]} Kg7 {[%emt 0:02:58]} 36. c5 {[%emt 0:00:30]} Qa4 {[%emt 0:00:00]} 37. Qc7+ {[%emt 0:00:37]} Kh8 38. Bxg5 {[%emt 0:00:33]} fxg5 {[%emt 0:00:04]} 39. Nxg5 {[%emt 0:00:19]} Qa7 {[%emt 0:00:04]} 40. Qxd6 {[%emt 0:00:31]} Qg7 {[%emt 0:01:36]} 41. Nf3 {[%emt 0:00:31]} Rf1 {[%emt 0:00:56]} 42. Nxe5 {[%emt 0:00:26]} Rxf2 {[%emt 0:00:05]} 43. Ng4 {[%emt 0:00:26]} Rf8 {[%emt 0:00:30]} 44. d4 {[%emt 0:00:15]} Nf6 {[%emt 0:00:01]} 45. Nxf6 {[%emt 0:00:39]} Rxf6 {[%emt 0:00:00]} 46. Qe5 {[%emt 0:00:34]} Rf2 {[%emt 0:01:05]} 47. Qh5+ {[%emt 0:00:37]} Kg8 48. Qe8+ {[%emt 0:00:20]} Kh7 {[%emt 0:00:01]} 49. Qh5+ {[%emt 0:00:24]} Kg8 {[%emt 0:00:31]} 50. Qe8+ {[%emt 0:00:10]} Kh7 {[%emt 0:00:47]} 51. Qh5+ {[%emt 0:00:05]} Kg8 {[%emt 0:00:00]} 52. Qe8+ {[%emt 0:00:16]} Kh7 {[%emt 0:00:01]} 1/2-1/2

[Event "Hunan Belt and Road Open 2019"]
[Site "Hunan"]
[Date "2019.08.02"]
[Round "5.35"]
[White "Zhao, Chenxi"]
[Black "Liu, Guanchu"]
[Result "1-0"]
[ECO "B31"]
[WhiteElo "2400"]
[BlackElo "2449"]
[Annotator "NA"]
[PlyCount "101"]
[EventDate "2019.07.29"]
[EventType "swiss"]
[EventCountry "CHN"]
[SourceTitle "playchess.com"]
[Source "ChessBase"]
[SourceQuality "1"]
[TimeControl "5400+30"]

1. e4 {[%emt 0:00:00]} c5 {[%emt 0:00:09]} 2. Nf3 {[%emt 0:00:00]} Nc6 {[%emt 0:00:19]} 3. Bb5 {[%emt 0:00:16]} g6 {[%emt 0:00:21]} 4. O-O {[%emt 0:00:17]} Bg7 {[%emt 0:00:13]} 5. c3 {[%emt 0:00:27]} Nf6 {[%emt 0:00:21]} 6. Re1 {[%emt 0:00:31]} O-O {[%emt 0:04:15]} 7. h3 {[%emt 0:00:44]} Qb6 {[%emt 0:09:41]} 8. Na3 {[%emt 0:05:54]} d5 {[%emt 0:03:46]} 9. e5 {[%emt 0:02:46]} Ne8 {[%emt 0:00:06]} 10. Qa4 {[%emt 0:00:49]} Nc7 {[%emt 0:05:42]} 11. Bxc6 {[%emt 0:00:08]} Qxc6 {[%emt 0:00:39]} 12. Qh4 {[%emt 0:00:07]} Bf5 {[%emt 0:12:43]} 13. d4 {[%emt 0:02:33]} Ne6 {[%emt 0:05:57]} 14. dxc5 {[%emt 0:03:24]} Nxc5 {[%emt 0:06:40]} 15. Bh6 {[%emt 0:04:27]} Bxh6 {[%emt 0:02:13]} 16. Qxh6 {[%emt 0:00:09]} Ne6 {[%emt 0:00:04]} 17. Rad1 {[%emt 0:01:27]} Rad8 {[%emt 0:07:56]} 18. Qe3 {[%emt 0:16:11]} Qc5 {[%emt 0:05:42]} 19. Nd4 {[%emt 0:01:11]} Nxd4 {[%emt 0:00:15]} 20. Rxd4 {[%emt 0:00:06]} Rd7 {[%emt 0:04:13]} 21. Ra4 {[%emt 0:04:12]} Qxe3 {[%emt 0:00:39]} 22. Rxe3 {[%emt 0:00:36]} a6 {[%emt 0:00:13]} 23. g4 {[%emt 0:00:25]} Be6 {[%emt 0:00:29]} 24. Nc2 {[%emt 0:00:14]} Rc7 {[%emt 0:01:31]} 25. Nd4 {[%emt 0:02:25]} Rd8 {[%emt 0:00:47]} 26. Kg2 {[%emt 0:00:15]} Rc4 {[%emt 0:00:22]} 27. Ra5 {[%emt 0:00:43]} Bc8 {[%emt 0:00:12]} 28. Kg3 {[%emt 0:00:44]} b6 {[%emt 0:01:26]} 29. Ra3 {[%emt 0:00:07]} g5 {[%emt 0:02:39]} 30. Rb3 {[%emt 0:00:51]} b5 {[%emt 0:00:06]} 31. Rb4 {[%emt 0:00:13]} Kf8 {[%emt 0:04:47]} 32. a3 {[%emt 0:01:10]} Bd7 {[%emt 0:01:48]} 33. h4 {[%emt 0:03:14]} gxh4+ {[%emt 0:03:23]} 34. Kxh4 {[%emt 0:00:06]} a5 {[%emt 0:00:09]} 35. Rxc4 {[%emt 0:00:06]} dxc4 {[%emt 0:00:04]} 36. f4 {[%emt 0:00:21]} Rb8 {[%emt 0:00:35]} 37. f5 {[%emt 0:00:28]} b4 {[%emt 0:00:22]} 38. axb4 {[%emt 0:00:17]} axb4 {[%emt 0:00:03]} 39. Kg5 {[%emt 0:00:41]} bxc3 {[%emt 0:01:05]} 40. bxc3 {[%emt 0:00:03]} Kg7 {[%emt 0:01:34]} 41. f6+ {[%emt 0:03:03]} exf6+ {[%emt 0:00:05]} 42. exf6+ {[%emt 0:00:03]} Kf8 {[%emt 0:00:18]} 43. Re7 {[%emt 0:00:32]} Rd8 {[%emt 0:00:10]} 44. Re5 {[%emt 0:02:31]} Rc8 {[%emt 0:03:22]} 45. Rd5 {[%emt 0:02:21]} h6+ {[%emt 0:00:28]} 46. Kxh6 {[%emt 0:02:38]} Bxg4 {[%emt 0:00:10]} 47. Rg5 {[%emt 0:00:06]} Bd1 {[%emt 0:01:17]} 48. Kh7 {[%emt 0:00:35]} Ke8 {[%emt 0:00:07]} 49. Kg7 {[%emt 0:01:24]} Rc7 {[%emt 0:00:39]} 50. Re5+ {[%emt 0:00:37]} Kd8 {[%emt 0:00:05]} 51. Rd5+ {[%emt 0:00:19]} 1-0

[Event "Hunan Belt and Road Open 2019"]
[Site "Hunan"]
[Date "2019.08.02"]
[Round "5.36"]
[White "Li, Shilong"]
[Black "Munkhgal, Gombosuren"]
[Result "1/2-1/2"]
[ECO "C07"]
[WhiteElo "2457"]
[BlackElo "2442"]
[Annotator "ChessBase"]
[PlyCount "127"]
[EventDate "2019.07.29"]
[EventType "swiss"]
[EventCountry "CHN"]
[SourceTitle "playchess.com"]
[Source "ChessBase"]
[SourceQuality "1"]
[TimeControl "5400+30"]

1. e4 {[%emt 0:00:00]} e6 {[%emt 0:00:00]} 2. d4 {[%emt 0:00:00]} d5 {[%emt 0:00:00]} 3. Nd2 {[%emt 0:00:00]} c5 {[%emt 0:00:00]} 4. exd5 {[%emt 0:00:34]} Qxd5 {[%emt 0:00:04]} 5. dxc5 {[%emt 0:01:11]} Bxc5 {[%emt 0:01:12]} 6. Ngf3 {[%emt 0:00:06]} Nf6 {[%emt 0:00:09]} 7. Bc4 {[%emt 0:00:13]} Qc6 {[%emt 0:04:29]} 8. Qe2 {[%emt 0:00:41]} O-O {[%emt 0:03:13]} 9. O-O {[%emt 0:06:00]} Qc7 {[%emt 0:07:57]} 10. Ne4 {[%emt 0:09:46]} Nxe4 {[%emt 0:12:44]} 11. Qxe4 {[%emt 0:00:02]} Qc6 {[%emt 0:06:02]} 12. Qh4 {[%emt 0:38:15]} Be7 {[%emt 0:20:49]} 13. Qxe7 {[%emt 0:04:33]} Qxc4 {[%emt 0:00:09]} 14. b3 {[%emt 0:00:02]} Qb5 {[%emt 0:01:29]} 15. Rd1 {[%emt 0:21:40]} Nc6 {[%emt 0:01:32]} 16. Qc7 {[%emt 0:00:09]} Qh5 {[%emt 0:14:30]} 17. Ba3 {[%emt 0:04:46]} Re8 {[%emt 0:00:19]} 18. Nd4 {[%emt 0:00:35]} Nxd4 {[%emt 0:05:40]} 19. Rxd4 {[%emt 0:00:01]} h6 {[%emt 0:06:52]} 20. Re1 {[%emt 0:07:07]} e5 {[%emt 0:03:19]} 21. Rd8 {[%emt 0:04:12]} f6 {[%emt 0:00:09]} 22. Rxe8+ {[%emt 0:00:25]} Qxe8 {[%emt 0:00:05]} 23. f4 {[%emt 0:00:28]} Bd7 {[%emt 0:01:58]} 24. Qxb7 {[%emt 0:00:34]} Bc6 {[%emt 0:01:21]} 25. Qa6 {[%emt 0:00:01]} Rd8 {[%emt 0:02:50]} 26. Bc1 {[%emt 0:00:44]} Qd7 {[%emt 0:01:49]} 27. fxe5 {[%emt 0:00:17]} fxe5 {[%emt 0:00:01]} 28. Qc4+ {[%emt 0:00:32]} Kh8 {[%emt 0:01:51]} 29. h3 {[%emt 0:00:24]} Qd6 {[%emt 0:00:56]} 30. Bb2 {[%emt 0:00:59]} Re8 {[%emt 0:00:47]} 31. Qg4 {[%emt 0:00:40]} Bb7 {[%emt 0:01:58]} 32. Qg3 {[%emt 0:00:13]} Qb6+ {[%emt 0:01:00]} 33. Qf2 {[%emt 0:00:44]} Qa5 {[%emt 0:00:24]} 34. Qg3 {[%emt 0:00:13]} Qb6+ {[%emt 0:00:06]} 35. Qf2 {[%emt 0:00:20]} Qa5 36. Kh2 {[%emt 0:00:18]} Re6 {[%emt 0:01:09]} 37. Re2 {[%emt 0:00:34]} Qd5 {[%emt 0:01:04]} 38. Qf8+ {[%emt 0:00:50]} Kh7 39. Qf5+ {[%emt 0:00:26]} Kg8 {[%emt 0:01:00]} 40. c4 {[%emt 0:00:28]} Qc6 {[%emt 0:00:01]} 41. Rd2 {[%emt 0:00:16]} Re8 {[%emt 0:00:51]} 42. Qd7 {[%emt 0:00:37]} Re6 {[%emt 0:00:37]} 43. Qxc6 {[%emt 0:00:56]} Bxc6 {[%emt 0:00:01]} 44. Kg1 {[%emt 0:00:23]} Kf7 {[%emt 0:00:39]} 45. Kf2 {[%emt 0:00:05]} Rg6 {[%emt 0:00:10]} 46. Kf1 {[%emt 0:00:35]} Ke6 {[%emt 0:00:12]} 47. Re2 {[%emt 0:00:22]} Rg5 {[%emt 0:00:17]} 48. g4 {[%emt 0:00:53]} h5 {[%emt 0:01:31]} 49. Bc1 {[%emt 0:00:37]} Rg6 {[%emt 0:00:01]} 50. gxh5 {[%emt 0:00:06]} Rg3 {[%emt 0:00:11]} 51. Bb2 {[%emt 0:00:57]} Rg5 {[%emt 0:00:16]} 52. Bd4 {[%emt 0:00:35]} a6 {[%emt 0:00:14]} 53. Bf2 {[%emt 0:00:30]} Bg2+ {[%emt 0:00:14]} 54. Ke1 {[%emt 0:00:06]} Bxh3 {[%emt 0:00:01]} 55. Rd2 {[%emt 0:00:44]} Rxh5 {[%emt 0:00:34]} 56. c5 {[%emt 0:00:09]} Bg2 {[%emt 0:01:04]} 57. Rd6+ {[%emt 0:00:07]} Kf5 {[%emt 0:00:01]} 58. Rxa6 {[%emt 0:01:13]} Ke4 {[%emt 0:01:19]} 59. c6 {[%emt 0:00:15]} Kd3 {[%emt 0:00:22]} 60. Bg1 {[%emt 0:00:40]} Rf5 {[%emt 0:00:06]} 61. Bf2 {[%emt 0:00:07]} Rh5 {[%emt 0:00:11]} 62. Bg1 {[%emt 0:01:08]} Rf5 {[%emt 0:00:04]} 63. Bf2 {[%emt 0:00:16]} Rh5 {[%emt 0:00:01]} 64. Bg1 {[%emt 0:00:42]} 1/2-1/2